[Event "EICC 2021"]
[Site "Reykjavik"]
[Date "2021.08.31"]
[Round "6.34"]
[White "Plat, Vojtech"]
[Black "Sokolovsky, Yahli"]
[Result "1/2-1/2"]
[ECO "E61"]
[WhiteElo "2531"]
[BlackElo "2415"]
[Annotator "ChessBase"]
[PlyCount "75"]
[EventDate "2021.08.26"]
[EventType "swiss"]
[EventCountry "ISL"]
[Tiebreak "Cut1 Buchholz"]
[SourceTitle "playchess.com"]
[Source "ChessBase"]
[SourceQuality "1"]
[TimeControl "40/5400+30:1800+30"]

1. d4 {[%emt 0:00:04]} Nf6 {[%emt 0:00:11]} 2. Nf3 {[%emt 0:00:04]} g6 {
[%emt 0:00:04]} 3. e3 {[%emt 0:00:18]} Bg7 {[%emt 0:00:30]} 4. c4 {[%emt 0:00:
08]} d6 {[%emt 0:00:53]} 5. Nc3 {[%emt 0:00:13]} O-O {[%emt 0:05:17]} 6. Be2 {
[%emt 0:00:04]} Bf5 {[%emt 0:01:25]} 7. O-O {[%emt 0:00:12]} Ne4 {[%emt 0:01:
18]} 8. Nxe4 {[%emt 0:02:31]} Bxe4 {[%emt 0:00:05]} 9. Bd2 {[%emt 0:00:10]} c5
{[%emt 0:07:33]} 10. Bc3 {[%emt 0:00:19]} Nc6 {[%emt 0:01:14]} 11. Qd2 {
[%emt 0:03:23]} e5 {[%emt 0:11:55]} 12. d5 {[%emt 0:02:09]} Bxf3 {[%emt 0:03:
03]} 13. Bxf3 {[%emt 0:00:12]} Nb8 {[%emt 0:02:58]} 14. Bd1 {[%emt 0:01:05]}
Nd7 {[%emt 0:01:58]} 15. Ba4 {[%emt 0:00:10]} Nb6 {[%emt 0:02:58]} 16. Bb3 {
[%emt 0:00:12]} f5 {[%emt 0:02:10]} 17. f3 {[%emt 0:01:25]} f4 {[%emt 0:04:37]}
18. exf4 {[%emt 0:00:29]} Rxf4 {[%emt 0:04:00]} 19. g3 {[%emt 0:00:06]} Rf7 {
[%emt 0:02:48]} 20. a4 {[%emt 0:05:15]} a5 {[%emt 0:06:03]} 21. Rae1 {[%emt 0:
02:49]} Qd7 {[%emt 0:07:27]} 22. Qd1 {[%emt 0:08:37]} Nc8 {[%emt 0:01:04]} 23.
Bc2 {[%emt 0:02:39]} Ne7 {[%emt 0:00:38]} 24. Be4 {[%emt 0:03:52]} Nf5 {
[%emt 0:02:16]} 25. b3 {[%emt 0:00:12]} Bh6 {[%emt 0:02:37]} 26. Qd3 {[%emt 0:
00:26]} b6 {[%emt 0:01:33]} 27. Kg2 {[%emt 0:00:12]} Raf8 {[%emt 0:01:15]} 28.
Rh1 {[%emt 0:00:14]} Qd8 {[%emt 0:03:21]} 29. h4 {[%emt 0:01:12]} Qf6 {[%emt 0:
08:54]} 30. Bb2 {[%emt 0:03:26]} Ng7 {[%emt 0:07:39]} 31. g4 {[%emt 0:00:43]}
Bf4 {[%emt 0:00:56]} 32. h5 {[%emt 0:00:38]} Nf5 {[%emt 0:01:08]} 33. hxg6 {
[%emt 0:00:58]} hxg6 {[%emt 0:01:26]} 34. gxf5 {[%emt 0:02:36]} gxf5 {[%emt 0:
02:24]} 35. Reg1 {[%emt 0:00:08]} fxe4 {[%emt 0:00:39]} 36. Qxe4 {[%emt 0:00:
41]} Rg7+ {[%emt 0:00:56]} 37. Kf2 {[%emt 0:00:05]} Qf5 {[%emt 0:00:24]} 38.
Qxf5 {[%emt 0:00:47]} 1/2-1/2

[Event "EICC 2021"]
[Site "Reykjavik"]
[Date "2021.08.31"]
[Round "6.35"]
[White "Petrov, Martin"]
[Black "Subelj, Jan"]
[Result "1/2-1/2"]
[ECO "C54"]
[WhiteElo "2521"]
[BlackElo "2412"]
[Annotator "ChessBase"]
[PlyCount "77"]
[EventDate "2021.08.26"]
[EventType "swiss"]
[EventCountry "ISL"]
[Tiebreak "Cut1 Buchholz"]
[SourceTitle "playchess.com"]
[Source "ChessBase"]
[SourceQuality "1"]
[TimeControl "40/5400+30:1800+30"]

1. e4 {[%emt 0:00:26]} e5 {[%emt 0:01:00]} 2. Nf3 {[%emt 0:00:09]} Nc6 {
[%emt 0:00:12]} 3. Bc4 {[%emt 0:00:31]} Nf6 {[%emt 0:00:42]} 4. d3 {[%emt 0:00:
48]} Bc5 {[%emt 0:01:11]} 5. O-O {[%emt 0:00:21]} d6 {[%emt 0:00:44]} 6. c3 {
[%emt 0:00:26]} h6 {[%emt 0:00:46]} 7. Re1 {[%emt 0:01:00]} O-O {[%emt 0:01:58]
} 8. Nbd2 {[%emt 0:01:31]} a5 {[%emt 0:00:53]} 9. Nf1 {[%emt 0:00:50]} a4 {
[%emt 0:01:37]} 10. h3 {[%emt 0:01:48]} Ra5 {[%emt 0:01:07]} 11. Ng3 {[%emt 0:
01:34]} b5 {[%emt 0:04:02]} 12. b4 {[%emt 0:00:07]} axb3 {[%emt 0:19:33]} 13.
Bxb3 {[%emt 0:00:11]} Bb6 {[%emt 0:02:17]} 14. d4 {[%emt 0:08:23]} Ra8 {
[%emt 0:02:56]} 15. Be3 {[%emt 0:15:33]} Bd7 {[%emt 0:14:28]} 16. Qc1 {[%emt 0:
10:08]} Kh7 {[%emt 0:01:44]} 17. Bc2 {[%emt 0:02:58]} Re8 {[%emt 0:06:47]} 18.
Rd1 {[%emt 0:08:23]} Na5 {[%emt 0:03:36]} 19. dxe5 {[%emt 0:19:39]} Bxe3 {
[%emt 0:02:21]} 20. Qxe3 {[%emt 0:00:07]} Nc4 {[%emt 0:00:24]} 21. Qe2 {
[%emt 0:01:21]} dxe5 {[%emt 0:01:28]} 22. Bb3 {[%emt 0:04:26]} Nd6 {[%emt 0:02:
07]} 23. Rd2 {[%emt 0:02:56]} Qe7 {[%emt 0:01:21]} 24. Rad1 {[%emt 0:00:06]} g6
{[%emt 0:00:38]} 25. Nh2 {[%emt 0:07:53]} Bc6 {[%emt 0:05:00]} 26. Ng4 {
[%emt 0:02:54]} Ndxe4 27. Nxe4 {[%emt 0:01:18]} Nxe4 {[%emt 0:01:39]} 28. Qe3 {
[%emt 0:00:11]} Qg5 {[%emt 0:00:40]} 29. Rd7 {[%emt 0:05:04]} Bxd7 {[%emt 0:01:
10]} 30. Rxd7 Qxe3 31. Rxf7+ Kh8 32. fxe3 {[%emt 0:00:03]} h5 33. Nh6 {[%emt 0:
00:06]} Ng5 {[%emt 0:00:11]} 34. Rxc7 {[%emt 0:00:12]} Ne4 {[%emt 0:00:02]} 35.
Rf7 {[%emt 0:00:34]} Nd6 {[%emt 0:00:07]} 36. Rc7 Nc4 {[%emt 0:00:01]} 37. Nf7+
{[%emt 0:00:02]} Kg8 38. Nh6+ Kh8 39. Rd7 {[%emt 0:00:05]} 1/2-1/2

[Event "EICC 2021"]
[Site "Reykjavik"]
[Date "2021.08.31"]
[Round "6.36"]
[White "Ferreira, Jorge Viterbo"]
[Black "D`Costa, Lorin"]
[Result "1-0"]
[ECO "B12"]
[WhiteElo "2520"]
[BlackElo "2381"]
[Annotator "ChessBase"]
[PlyCount "97"]
[EventDate "2021.08.26"]
[EventType "swiss"]
[EventCountry "ISL"]
[Tiebreak "Cut1 Buchholz"]
[SourceTitle "playchess.com"]
[Source "ChessBase"]
[SourceQuality "1"]
[TimeControl "40/5400+30:1800+30"]

1. e4 {[%emt 0:00:03]} c6 {[%emt 0:01:03]} 2. d4 {[%emt 0:00:12]} d5 {[%emt 0:
00:08]} 3. Nd2 {[%emt 0:00:10]} Qc7 {[%emt 0:02:16]} 4. Bd3 {[%emt 0:02:31]}
dxe4 {[%emt 0:01:59]} 5. Nxe4 {[%emt 0:02:47]} Bf5 {[%emt 0:00:58]} 6. Qf3 {
[%emt 0:11:23]} Bxe4 {[%emt 0:09:11]} 7. Bxe4 {[%emt 0:06:05]} Nf6 {[%emt 0:01:
56]} 8. Bf4 {[%emt 0:03:16]} Qa5+ {[%emt 0:05:49]} 9. Bd2 {[%emt 0:01:08]} Qb6
{[%emt 0:00:59]} 10. Ne2 {[%emt 0:05:42]} Nbd7 {[%emt 0:05:14]} 11. Bd3 {
[%emt 0:08:03]} g6 {[%emt 0:03:02]} 12. O-O {[%emt 0:06:53]} Bg7 {[%emt 0:03:
40]} 13. a4 {[%emt 0:07:03]} O-O {[%emt 0:14:00]} 14. a5 {[%emt 0:00:30]} Qc7 {
[%emt 0:01:13]} 15. a6 {[%emt 0:04:39]} b5 {[%emt 0:06:41]} 16. Bf4 {[%emt 0:
04:03]} Qb6 {[%emt 0:13:36]} 17. c3 {[%emt 0:09:39]} Rae8 {[%emt 0:05:03]} 18.
Rfe1 {[%emt 0:02:02]} Nd5 {[%emt 0:17:40]} 19. Be4 {[%emt 0:00:25]} N7f6 {
[%emt 0:00:21]} 20. Be5 {[%emt 0:00:58]} Nxe4 {[%emt 0:01:08]} 21. Qxe4 {
[%emt 0:00:08]} Rd8 {[%emt 0:01:27]} 22. Bxg7 {[%emt 0:01:40]} Kxg7 {[%emt 0:
00:01]} 23. Nc1 {[%emt 0:00:22]} Nf6 {[%emt 0:02:01]} 24. Qe3 {[%emt 0:02:43]}
Nd5 {[%emt 0:01:14]} 25. Qe5+ {[%emt 0:00:43]} f6 {[%emt 0:00:55]} 26. Qg3 {
[%emt 0:00:53]} c5 {[%emt 0:00:28]} 27. dxc5 {[%emt 0:01:19]} Qxc5 {[%emt 0:00:
05]} 28. Nb3 {[%emt 0:00:09]} Qb6 {[%emt 0:00:27]} 29. Qf3 {[%emt 0:05:41]}
Rfe8 {[%emt 0:01:47]} 30. Red1 {[%emt 0:07:29]} e6 {[%emt 0:00:10]} 31. g3 {
[%emt 0:00:58]} Rd6 {[%emt 0:00:16]} 32. Na5 {[%emt 0:00:38]} Qc7 {[%emt 0:00:
50]} 33. Nb7 {[%emt 0:01:37]} Rb6 {[%emt 0:00:36]} 34. b4 {[%emt 0:00:46]} Nxc3
{[%emt 0:00:42]} 35. Rac1 {[%emt 0:02:56]} Rc6 {[%emt 0:00:19]} 36. Kg2 {
[%emt 0:00:24]} Nd5 {[%emt 0:00:30]} 37. Nc5 {[%emt 0:00:13]} Re7 {[%emt 0:00:
43]} 38. Qe2 {[%emt 0:01:08]} Kf7 {[%emt 0:00:27]} 39. Qxb5 {[%emt 0:00:32]}
Qb6 {[%emt 0:00:27]} 40. Qa4 {[%emt 0:02:07]} Rec7 {[%emt 0:00:36]} 41. Rd4 {
[%emt 0:03:24]} Rd6 {[%emt 0:11:55]} 42. Kg1 {[%emt 0:10:55]} Qc6 {[%emt 0:09:
28]} 43. b5 {[%emt 0:03:18]} Qe8 {[%emt 0:01:55]} 44. Rdc4 {[%emt 0:01:05]} Re7
{[%emt 0:05:00]} 45. Nb7 {[%emt 0:00:51]} Rb6 {[%emt 0:02:39]} 46. Rc8 {
[%emt 0:00:10]} Qd7 {[%emt 0:00:18]} 47. Rd8 {[%emt 0:00:06]} Rxb7 {[%emt 0:00:
53]} 48. axb7 {[%emt 0:00:47]} Qxd8 {[%emt 0:00:43]} 49. Rc8 {[%emt 0:00:08]}
1-0

[Event "EICC 2021"]
[Site "Reykjavik"]
[Date "2021.08.31"]
[Round "6.37"]
[White "Baltag, Iulian"]
[Black "Hjartarson, Johann"]
[Result "1/2-1/2"]
[ECO "B40"]
[WhiteElo "2410"]
[BlackElo "2519"]
[Annotator "ChessBase"]
[PlyCount "63"]
[EventDate "2021.08.26"]
[EventType "swiss"]
[EventCountry "ISL"]
[Tiebreak "Cut1 Buchholz"]
[SourceTitle "playchess.com"]
[Source "ChessBase"]
[SourceQuality "1"]
[TimeControl "40/5400+30:1800+30"]

1. e4 {[%emt 0:00:03]} c5 {[%emt 0:00:53]} 2. Nf3 {[%emt 0:00:15]} e6 {[%emt 0:
00:08]} 3. g3 {[%emt 0:01:05]} Nc6 {[%emt 0:00:40]} 4. Bg2 {[%emt 0:00:32]} Nf6
{[%emt 0:00:20]} 5. Qe2 {[%emt 0:00:35]} e5 {[%emt 0:00:46]} 6. c3 {[%emt 0:00:
21]} d6 {[%emt 0:01:21]} 7. O-O {[%emt 0:00:26]} Be7 {[%emt 0:00:20]} 8. Rd1 {
[%emt 0:00:38]} O-O {[%emt 0:10:18]} 9. d4 {[%emt 0:02:36]} cxd4 {[%emt 0:06:
17]} 10. cxd4 {[%emt 0:00:39]} Bg4 {[%emt 0:00:12]} 11. dxe5 {[%emt 0:00:12]}
Nxe5 {[%emt 0:00:07]} 12. h3 {[%emt 0:00:41]} Nxf3+ {[%emt 0:00:55]} 13. Bxf3 {
[%emt 0:00:11]} Bxf3 {[%emt 0:02:47]} 14. Qxf3 {[%emt 0:00:13]} Qc8 {[%emt 0:
00:24]} 15. Kg2 {[%emt 0:00:31]} Qe6 {[%emt 0:09:17]} 16. Nc3 {[%emt 0:01:16]}
Rfc8 {[%emt 0:06:19]} 17. Be3 {[%emt 0:06:51]} a6 {[%emt 0:05:56]} 18. Bd4 {
[%emt 0:07:36]} b5 {[%emt 0:02:32]} 19. Rd2 {[%emt 0:00:56]} Nd7 {[%emt 0:08:
26]} 20. Nd5 {[%emt 0:13:12]} Bf8 {[%emt 0:07:05]} 21. a4 {[%emt 0:03:07]} bxa4
{[%emt 0:02:47]} 22. Rxa4 {[%emt 0:01:03]} Nc5 {[%emt 0:03:37]} 23. Bxc5 {
[%emt 0:01:03]} dxc5 {[%emt 0:00:22]} 24. Qg4 {[%emt 0:01:57]} Qc6 {[%emt 0:01:
42]} 25. Ra3 {[%emt 0:02:02]} Re8 {[%emt 0:01:24]} 26. Rf3 {[%emt 0:10:07]} Re6
{[%emt 0:02:01]} 27. Qf4 {[%emt 0:01:29]} Ra7 {[%emt 0:02:38]} 28. Rb3 {
[%emt 0:05:55]} Rb7 {[%emt 0:01:14]} 29. Rxb7 {[%emt 0:09:32]} Qxb7 {[%emt 0:
00:13]} 30. Nc3 {[%emt 0:00:43]} g6 {[%emt 0:05:27]} 31. Kh2 {[%emt 0:02:44]}
h6 {[%emt 0:03:31]} 32. Qe3 {[%emt 0:01:47]} 1/2-1/2

[Event "EICC 2021"]
[Site "Reykjavik"]
[Date "2021.08.31"]
[Round "6.38"]
[White "Stefansson, Hannes"]
[Black "Kanyamarala, Tarun"]
[Result "1-0"]
[ECO "B30"]
[WhiteElo "2519"]
[BlackElo "2369"]
[Annotator "ChessBase"]
[PlyCount "101"]
[EventDate "2021.08.26"]
[EventType "swiss"]
[EventCountry "ISL"]
[Tiebreak "Cut1 Buchholz"]
[SourceTitle "playchess.com"]
[Source "ChessBase"]
[SourceQuality "1"]
[TimeControl "40/5400+30:1800+30"]

1. e4 {[%emt 0:00:07]} c5 {[%emt 0:00:10]} 2. Nf3 {[%emt 0:00:19]} Nc6 {
[%emt 0:00:07]} 3. Bb5 {[%emt 0:00:20]} e6 {[%emt 0:00:09]} 4. Bxc6 {[%emt 0:
00:24]} bxc6 {[%emt 0:00:09]} 5. b3 {[%emt 0:00:32]} Ne7 {[%emt 0:01:02]} 6.
Bb2 {[%emt 0:00:54]} Ng6 {[%emt 0:01:21]} 7. h4 {[%emt 0:01:30]} h5 {[%emt 0:
01:49]} 8. e5 {[%emt 0:00:54]} f6 {[%emt 0:05:30]} 9. d3 {[%emt 0:00:16]} d5 {
[%emt 0:00:25]} 10. exd6 {[%emt 0:08:55]} Bxd6 {[%emt 0:00:17]} 11. Nfd2 {
[%emt 0:01:03]} e5 {[%emt 0:10:13]} 12. Qf3 {[%emt 0:01:09]} Rb8 {[%emt 0:09:
44]} 13. Nc3 {[%emt 0:08:24]} Nf4 {[%emt 0:11:30]} 14. Nc4 {[%emt 0:04:27]} Be7
{[%emt 0:03:46]} 15. Ne3 {[%emt 0:01:19]} Kf7 {[%emt 0:06:35]} 16. O-O-O {
[%emt 0:02:08]} Ne6 {[%emt 0:08:07]} 17. Qxc6 {[%emt 0:02:29]} Bb7 {[%emt 0:01:
18]} 18. Qa4 {[%emt 0:00:43]} Qc8 {[%emt 0:07:17]} 19. Ncd5 {[%emt 0:06:12]}
Bd8 {[%emt 0:07:51]} 20. f4 {[%emt 0:03:29]} Bc6 {[%emt 0:03:28]} 21. Qc4 {
[%emt 0:01:16]} exf4 {[%emt 0:04:08]} 22. Nxf4 {[%emt 0:00:21]} Rb4 {[%emt 0:
01:16]} 23. Qxe6+ {[%emt 0:00:26]} Qxe6 {[%emt 0:00:08]} 24. Nxe6 {[%emt 0:00:
05]} Kxe6 {[%emt 0:00:05]} 25. Ba3 {[%emt 0:03:21]} Rb5 {[%emt 0:00:29]} 26.
Rhe1 {[%emt 0:07:41]} Kd7 {[%emt 0:00:47]} 27. Re2 {[%emt 0:06:30]} Re8 {
[%emt 0:01:10]} 28. Kd2 {[%emt 0:02:52]} Ba5+ {[%emt 0:01:28]} 29. c3 {[%emt 0:
00:08]} Bc7 {[%emt 0:00:12]} 30. Rf1 {[%emt 0:00:43]} Be5 {[%emt 0:04:03]} 31.
Rff2 {[%emt 0:03:30]} Bg3 {[%emt 0:04:39]} 32. Rf5 {[%emt 0:00:09]} Bxh4 {
[%emt 0:00:24]} 33. Rxc5 {[%emt 0:00:09]} Rxc5 {[%emt 0:01:02]} 34. Bxc5 {
[%emt 0:00:07]} Bg5 {[%emt 0:00:27]} 35. c4 {[%emt 0:02:48]} f5 {[%emt 0:01:20]
} 36. Ke1 {[%emt 0:01:30]} g6 {[%emt 0:03:04]} 37. Bxa7 {[%emt 0:02:25]} h4 {
[%emt 0:02:29]} 38. Nd5 {[%emt 0:01:12]} Rh8 {[%emt 0:00:29]} 39. Bd4 {[%emt 0:
00:40]} Rf8 {[%emt 0:00:52]} 40. Re5 {[%emt 0:03:15]} h3 {[%emt 0:00:31]} 41.
gxh3 {[%emt 0:30:46]} Rf7 {[%emt 0:07:36]} 42. b4 {[%emt 0:00:00]} Rh7 {
[%emt 0:00:48]} 43. b5 {[%emt 0:00:00]} Bxd5 {[%emt 0:00:32]} 44. Rxd5+ {
[%emt 0:00:00]} Kc8 {[%emt 0:00:13]} 45. c5 {[%emt 0:00:00]} Rxh3 {[%emt 0:00:
30]} 46. c6 {[%emt 0:00:00]} Rh1+ {[%emt 0:01:38]} 47. Ke2 {[%emt 0:00:00]}
Rh2+ {[%emt 0:01:53]} 48. Kf1 {[%emt 0:00:00]} Rc2 {[%emt 0:00:24]} 49. Rd6 {
[%emt 0:00:00]} Rc1+ {[%emt 0:00:23]} 50. Ke2 {[%emt 0:00:00]} Rc2+ {[%emt 0:
00:29]} 51. Kf3 {[%emt 0:00:00]} 1-0

[Event "EICC 2021"]
[Site "Reykjavik"]
[Date "2021.09.01"]
[Round "7.32"]
[White "Kulaots, Kaido"]
[Black "Baltag, Iulian"]
[Result "0-1"]
[ECO "C16"]
[WhiteElo "2548"]
[BlackElo "2410"]
[Annotator "ChessBase"]
[PlyCount "80"]
[EventDate "2021.08.26"]
[EventType "swiss"]
[EventCountry "ISL"]
[Tiebreak "Cut1 Buchholz"]
[SourceTitle "playchess.com"]
[Source "ChessBase"]
[SourceQuality "1"]
[TimeControl "40/5400+30:1800+30"]

1. e4 {[%emt 0:00:32]} e6 {[%emt 0:00:18]} 2. d4 {[%emt 0:00:43]} d5 {[%emt 0:
00:06]} 3. Nc3 {[%emt 0:00:39]} Bb4 {[%emt 0:00:08]} 4. e5 {[%emt 0:00:42]} Qd7
{[%emt 0:00:32]} 5. a3 {[%emt 0:01:59]} Bxc3+ {[%emt 0:00:06]} 6. bxc3 {
[%emt 0:00:05]} b6 {[%emt 0:00:16]} 7. Qg4 {[%emt 0:02:49]} f5 {[%emt 0:00:49]}
8. Qg3 {[%emt 0:01:42]} Ba6 {[%emt 0:00:22]} 9. Bxa6 {[%emt 0:01:16]} Nxa6 {
[%emt 0:00:04]} 10. h4 {[%emt 0:04:15]} Nb8 {[%emt 0:00:26]} 11. Nh3 {[%emt 0:
06:59]} Nc6 {[%emt 0:00:57]} 12. Bg5 {[%emt 0:02:25]} Qf7 {[%emt 0:02:51]} 13.
Qf3 {[%emt 0:12:07]} Nge7 {[%emt 0:01:12]} 14. h5 {[%emt 0:02:15]} h6 {[%emt 0:
09:46]} 15. Bh4 {[%emt 0:02:20]} O-O-O {[%emt 0:03:26]} 16. Nf4 {[%emt 0:00:48]
} Rdg8 {[%emt 0:05:03]} 17. a4 {[%emt 0:12:08]} g5 {[%emt 0:01:38]} 18. hxg6 {
[%emt 0:00:09]} Nxg6 {[%emt 0:00:05]} 19. Bf6 {[%emt 0:01:31]} Rh7 {[%emt 0:00:
28]} 20. Nh5 {[%emt 0:05:01]} Na5 {[%emt 0:00:42]} 21. Qd3 {[%emt 0:04:18]} Nc4
{[%emt 0:01:14]} 22. f3 {[%emt 0:01:27]} Nf8 {[%emt 0:00:27]} 23. Kf2 {[%emt 0:
00:56]} a5 {[%emt 0:00:26]} 24. Rh4 {[%emt 0:09:11]} Nd7 {[%emt 0:00:43]} 25.
Rah1 {[%emt 0:11:00]} Kb7 {[%emt 0:01:54]} 26. Qd1 {[%emt 0:06:37]} Qf8 {
[%emt 0:01:28]} 27. Qc1 {[%emt 0:00:34]} Rf7 {[%emt 0:06:58]} 28. R4h3 {
[%emt 0:02:52]} Ka7 {[%emt 0:05:18]} 29. Bh4 {[%emt 0:03:44]} Ndxe5 {[%emt 0:
10:06]} 30. Kg1 {[%emt 0:03:32]} Ng6 {[%emt 0:01:00]} 31. Bf2 {[%emt 0:00:24]}
f4 {[%emt 0:00:36]} 32. Kh2 {[%emt 0:00:42]} Rf5 {[%emt 0:00:24]} 33. Re1 {
[%emt 0:00:39]} Qf7 {[%emt 0:00:15]} 34. g4 {[%emt 0:00:25]} fxg3+ {[%emt 0:00:
10]} 35. Bxg3 {[%emt 0:00:02]} Nge5 {[%emt 0:02:26]} 36. dxe5 {[%emt 0:01:02]}
Rxh5 {[%emt 0:00:13]} 37. Qf4 {[%emt 0:00:35]} Rf5 {[%emt 0:00:33]} 38. Qxh6 {
[%emt 0:00:27]} Rxf3 {[%emt 0:00:14]} 39. Re2 {[%emt 0:00:23]} Nxe5 {[%emt 0:
01:40]} 40. Rxe5 {[%emt 0:00:44]} Rfxg3 {[%emt 0:00:24]} 0-1

[Event "EICC 2021"]
[Site "Reykjavik"]
[Date "2021.09.01"]
[Round "7.33"]
[White "Horvath, Dominik"]
[Black "Martinovic, Sasa"]
[Result "1-0"]
[ECO "C02"]
[WhiteElo "2455"]
[BlackElo "2548"]
[Annotator "ChessBase"]
[PlyCount "81"]
[EventDate "2021.08.26"]
[EventType "swiss"]
[EventCountry "ISL"]
[Tiebreak "Cut1 Buchholz"]
[SourceTitle "playchess.com"]
[Source "ChessBase"]
[SourceQuality "1"]
[TimeControl "40/5400+30:1800+30"]

1. e4 {[%emt 0:00:03]} e6 {[%emt 0:00:03]} 2. d4 {[%emt 0:00:16]} d5 {[%emt 0:
00:04]} 3. e5 {[%emt 0:00:05]} c5 {[%emt 0:00:05]} 4. c3 {[%emt 0:00:04]} Nc6 {
[%emt 0:00:02]} 5. Nf3 {[%emt 0:00:07]} Bd7 {[%emt 0:00:04]} 6. Be2 {[%emt 0:
00:08]} Nge7 {[%emt 0:00:09]} 7. Na3 {[%emt 0:01:24]} cxd4 {[%emt 0:00:17]} 8.
cxd4 {[%emt 0:00:06]} Nf5 {[%emt 0:00:12]} 9. Nc2 {[%emt 0:00:43]} Be7 {
[%emt 0:00:09]} 10. g3 {[%emt 0:14:39]} O-O {[%emt 0:04:47]} 11. h4 {[%emt 0:
02:53]} h6 {[%emt 0:25:41]} 12. h5 {[%emt 0:09:08]} Rc8 {[%emt 0:09:03]} 13.
Kf1 {[%emt 0:01:41]} f6 {[%emt 0:01:24]} 14. g4 {[%emt 0:02:50]} Nfxd4 {
[%emt 0:13:01]} 15. Ncxd4 {[%emt 0:00:26]} Nxe5 {[%emt 0:01:19]} 16. Rg1 {
[%emt 0:08:41]} Bc5 {[%emt 0:03:48]} 17. Be3 {[%emt 0:01:46]} Nc4 {[%emt 0:03:
43]} 18. Bxc4 {[%emt 0:03:12]} dxc4 {[%emt 0:00:03]} 19. Qc2 {[%emt 0:02:58]}
Bxd4 {[%emt 0:12:49]} 20. Nxd4 {[%emt 0:00:24]} Qe7 {[%emt 0:02:08]} 21. Qe4 {
[%emt 0:04:25]} c3 {[%emt 0:05:45]} 22. bxc3 {[%emt 0:02:14]} Rxc3 {[%emt 0:00:
03]} 23. Kg2 {[%emt 0:09:48]} e5 {[%emt 0:13:05]} 24. Nf5 {[%emt 0:00:49]} Qf7
{[%emt 0:01:14]} 25. Kh2 {[%emt 0:01:04]} Bc6 {[%emt 0:02:34]} 26. Qb4 {
[%emt 0:01:08]} Rc4 {[%emt 0:00:47]} 27. Qe7 {[%emt 0:00:43]} Ra4 {[%emt 0:00:
39]} 28. a3 {[%emt 0:02:34]} Kh7 {[%emt 0:05:30]} 29. Rad1 {[%emt 0:04:39]}
Qxe7 {[%emt 0:00:00]} 30. Nxe7 {[%emt 0:00:06]} Bf3 {[%emt 0:00:00]} 31. Ng6 {
[%emt 0:06:53]} Rc8 {[%emt 0:00:00]} 32. Rd7 {[%emt 0:00:06]} Bxg4 {[%emt 0:00:
00]} 33. Rxb7 {[%emt 0:00:07]} Bxh5 {[%emt 0:00:00]} 34. Nf8+ {[%emt 0:00:54]}
Kh8 {[%emt 0:00:00]} 35. Rgxg7 {[%emt 0:00:32]} Rcc4 {[%emt 0:00:00]} 36. Ng6+
{[%emt 0:01:51]} Bxg6 {[%emt 0:00:00]} 37. Rxg6 {[%emt 0:00:04]} Rh4+ {[%emt 0:
00:00]} 38. Kg3 {[%emt 0:00:18]} f5 {[%emt 0:00:00]} 39. Rbg7 {[%emt 0:00:48]}
Rhg4+ {[%emt 0:00:56]} 40. Rxg4 {[%emt 0:00:05]} fxg4 {[%emt 0:00:03]} 41. Rxa7
{[%emt 0:30:07]} 1-0

[Event "EICC 2021"]
[Site "Reykjavik"]
[Date "2021.09.01"]
[Round "7.34"]
[White "Koellner, Ruben Gideon"]
[Black "Hillarp Persson, Tiger"]
[Result "1/2-1/2"]
[ECO "A45"]
[WhiteElo "2418"]
[BlackElo "2543"]
[Annotator "ChessBase"]
[PlyCount "90"]
[EventDate "2021.08.26"]
[EventType "swiss"]
[EventCountry "ISL"]
[Tiebreak "Cut1 Buchholz"]
[SourceTitle "playchess.com"]
[Source "ChessBase"]
[SourceQuality "1"]
[TimeControl "40/5400+30:1800+30"]

1. d4 {[%emt 0:00:04]} Nf6 {[%emt 0:00:29]} 2. Bg5 {[%emt 0:00:05]} c5 {
[%emt 0:00:13]} 3. Bxf6 {[%emt 0:00:08]} gxf6 {[%emt 0:00:08]} 4. d5 {[%emt 0:
00:04]} Qb6 {[%emt 0:00:11]} 5. Qc1 {[%emt 0:00:03]} f5 {[%emt 0:01:04]} 6. c4
{[%emt 0:00:05]} Bg7 {[%emt 0:00:11]} 7. Nc3 {[%emt 0:00:06]} d6 {[%emt 0:00:
06]} 8. e3 {[%emt 0:00:06]} Nd7 {[%emt 0:00:45]} 9. Qc2 {[%emt 0:00:11]} Qa5 {
[%emt 0:00:20]} 10. Rc1 {[%emt 0:02:05]} b5 {[%emt 0:00:25]} 11. cxb5 {[%emt 0:
00:25]} Nb6 {[%emt 0:00:32]} 12. Qd2 {[%emt 0:00:45]} Bb7 {[%emt 0:02:13]} 13.
Nh3 {[%emt 0:01:39]} Nxd5 {[%emt 0:03:18]} 14. Nxd5 {[%emt 0:00:47]} Qxd2+ {
[%emt 0:00:12]} 15. Kxd2 {[%emt 0:00:02]} Bxd5 {[%emt 0:00:11]} 16. b3 {
[%emt 0:00:05]} Bb7 {[%emt 0:26:35]} 17. Nf4 {[%emt 0:01:40]} e6 {[%emt 0:07:
16]} 18. Be2 {[%emt 0:02:22]} a6 {[%emt 0:01:34]} 19. b4 {[%emt 0:14:11]} cxb4
{[%emt 0:03:42]} 20. Rc7 {[%emt 0:00:18]} Bc3+ {[%emt 0:00:05]} 21. Kc1 {
[%emt 0:03:01]} O-O {[%emt 0:20:47]} 22. Rxb7 {[%emt 0:00:40]} axb5 {[%emt 0:
00:06]} 23. Kb1 {[%emt 0:26:18]} b3 {[%emt 0:02:35]} 24. axb3 {[%emt 0:00:05]}
Rfc8 {[%emt 0:01:30]} 25. Rc1 {[%emt 0:10:03]} Ra1+ {[%emt 0:00:58]} 26. Kc2 {
[%emt 0:00:04]} Be5+ {[%emt 0:03:44]} 27. Bc4 {[%emt 0:00:04]} Rxc1+ {[%emt 0:
03:14]} 28. Kxc1 {[%emt 0:00:03]} bxc4 {[%emt 0:00:11]} 29. Kd1 {[%emt 0:00:26]
} c3 {[%emt 0:06:59]} 30. Nd3 {[%emt 0:07:37]} c2+ {[%emt 0:00:35]} 31. Kc1 {
[%emt 0:00:02]} Bxh2 {[%emt 0:00:08]} 32. b4 {[%emt 0:06:43]} Bg1 {[%emt 0:02:
50]} 33. Rb6 {[%emt 0:05:43]} d5 {[%emt 0:01:53]} 34. b5 {[%emt 0:00:19]} Rc3 {
[%emt 0:04:45]} 35. Rb8+ {[%emt 0:03:28]} Kg7 {[%emt 0:00:08]} 36. b6 {[%emt 0:
00:38]} d4 {[%emt 0:07:35]} 37. b7 {[%emt 0:00:59]} Rxd3 {[%emt 0:00:49]} 38.
Rg8+ {[%emt 0:03:11]} Kxg8 {[%emt 0:00:08]} 39. b8=Q+ {[%emt 0:00:03]} Kg7 {
[%emt 0:00:10]} 40. Qb5 {[%emt 0:07:03]} Ra3 {[%emt 0:00:48]} 41. Qe5+ {
[%emt 0:30:12]} Kg6 {[%emt 0:30:12]} 42. Qg3+ {[%emt 0:00:38]} Kf6 {[%emt 0:00:
24]} 43. Qh4+ {[%emt 0:00:53]} Kg6 {[%emt 0:00:16]} 44. Qg3+ {[%emt 0:01:29]}
Kf6 {[%emt 0:00:10]} 45. Qh4+ {[%emt 0:00:22]} Kg6 {[%emt 0:00:09]} 1/2-1/2